bitfinex/quotes_BTCUSD_20250422
["timestamp","ask_amount","ask_price","bid_price","bid_amount"]
[1745362056915,0.15560305,92573.0,92572.0,0.003]
[1745362057129,0.15860305,92573.0,92572.0,0.001]
[1745362057539,0.15560305,92573.0,92571.0,0.004]
[1745362057774,0.15560305,92573.0,92564.0,0.0004247]
[1745362057775,0.0463,92572.0,92564.0,0.0004247]
[1745362057992,0.15460305,92571.0,92564.0,0.0004247]
[1745362058311,0.0463,92570.0,92564.0,0.0004247]
[1745362058614,0.10830305,92569.0,92564.0,0.0004247]
[1745362059414,0.0463,92568.0,92564.0,0.0004247]
[1745362059618,0.10830305,92567.0,92564.0,0.0004247]
[1745362060843,0.11430305,92567.0,92564.0,0.0004247]
[1745362061465,0.11830305,92567.0,92564.0,0.0004247]
[1745362062097,0.11930305,92567.0,92564.0,0.0004247]
[1745362063621,0.0495,92566.0,92564.0,0.0004247]
[1745362063842,0.10830305,92565.0,92564.0,0.0004247]
[1745362064006,0.20510305,92565.0,92564.0,0.0004247]
[1745362065092,0.20710305,92565.0,92564.0,0.0004247]
[1745362066316,0.21410305,92565.0,92564.0,0.0004247]
[1745362067040,0.21410305,92565.0,92563.0,0.0004248]
[1745362067041,0.0968,92564.0,92563.0,0.0004248]
[1745362067288,0.20510305,92564.0,92563.0,0.0004248]
[1745362069362,0.21410305,92564.0,92563.0,0.0004248]
[1745362070450,0.21910305,92564.0,92563.0,0.0004248]
[1745362074461,0.22138422,92564.0,92530.0,0.09724811]
[1745362074611,0.27518096,92560.0,92551.0,0.00013838]
[1745362074809,0.11058422,92559.0,92551.0,0.00013838]
[1745362076156,0.002,92559.0,92551.0,0.00013838]
[1745362076499,0.002,92559.0,92551.0,0.00113838]
[1745362076699,0.008,92559.0,92551.0,0.00113838]
[1745362077099,0.002,92559.0,92551.0,0.00013838]
[1745362077301,0.004,92559.0,92551.0,0.00113838]
[1745362078043,0.002,92559.0,92551.0,0.00113838]
[1745362078613,0.002,92559.0,92551.0,0.00213838]
[1745362079945,0.15618422,92558.0,92551.0,0.00213838]
[1745362080143,0.046,92557.0,92551.0,0.00213838]
[1745362080345,0.11058422,92556.0,92551.0,0.00213838]
[1745362081584,0.11058422,92556.0,92551.0,0.00013838]
[1745362082596,0.11858422,92556.0,92551.0,0.00013838]
[1745362087026,0.008,92556.0,92551.0,0.00013838]
[1745362087268,0.00228117,92555.0,92551.0,0.00013838]
[1745362087467,0.008,92556.0,92551.0,0.00013838]
[1745362088386,0.002,92556.0,92555.0,0.21608773]
[1745362088570,0.002,92556.0,92552.0,0.00216071]
[1745362089092,0.006,92555.0,92552.0,0.00216071]
[1745362089451,0.00228117,92577.0,92552.0,0.00216071]
[1745362089856,0.002,92556.0,92552.0,0.00316071]
[1745362090059,0.002,92556.0,92555.0,0.23062858]
[1745362090232,0.002,92556.0,92555.0,3.28308363]
[1745362090435,0.00228117,92596.0,92564.0,0.23060757]
[1745362090637,0.0456,92598.0,92564.0,0.33891062]
[1745362090865,0.0456,92598.0,92564.0,3.00291462]
[1745362091064,0.0456,92598.0,92564.0,3.10959262]
[1745362091287,0.0456,92598.0,92564.0,2.84900762]
[1745362091443,0.00313117,92603.0,92564.0,2.84900762]
[1745362091444,0.00085,92603.0,92566.0,0.2306029]
[1745362091630,0.00085,92603.0,92566.0,3.90921395]
[1745362091829,0.00085,92603.0,92566.0,2.70865995]
[1745362092289,0.00085,92603.0,92566.0,1.89934495]
[1745362092935,0.00085,92603.0,92566.0,1.90534495]
[1745362093162,0.002,92567.0,92566.0,1.90934495]
[1745362095115,0.001,92567.0,92566.0,1.89934495]
[1745362095321,0.001,92567.0,92566.0,1.88580195]
[1745362095529,0.002,92567.0,92566.0,1.89580195]
[1745362099426,0.08596466,92599.0,92593.0,0.21599904]
[1745362099427,5.04e-05,92594.0,92593.0,0.21599904]
[1745362099798,5.04e-05,92594.0,92593.0,0.21815881]
[1745362100217,5.04e-05,92594.0,92589.0,0.21600623]
[1745362100638,0.00018954,92594.0,92589.0,0.22680664]
[1745362100863,0.00018954,92594.0,92589.0,0.21600623]
[1745362101069,0.00018954,92594.0,92591.0,0.2160035]
[1745362101251,0.00118954,92594.0,92591.0,0.2160035]
[1745362101631,0.00018954,92594.0,92591.0,0.2160035]
[1745362101830,0.00118954,92594.0,92591.0,0.2160035]
[1745362102027,0.00118954,92594.0,92589.0,0.21700623]
[1745362102240,0.00018954,92594.0,92589.0,0.01454085]
[1745362102474,0.00118954,92594.0,92589.0,0.01454085]
[1745362103096,0.00118954,92594.0,92590.0,0.21600604]
[1745362103575,0.00118954,92594.0,92590.0,0.25947216]
[1745362103799,0.00018954,92594.0,92590.0,0.04346612]
[1745362104027,0.00118954,92594.0,92585.0,0.01454085]
[1745362104208,0.00118954,92594.0,92585.0,0.1228439]
[1745362104403,0.00118954,92594.0,92585.0,0.16598147]
[1745362104631,0.00118954,92594.0,92585.0,0.38199698]
[1745362104970,0.00218954,92594.0,92585.0,0.38199698]
[1745362105175,0.00218954,92594.0,92585.0,0.15144062]
[1745362105296,0.00218954,92594.0,92585.0,0.04313757]
[1745362105498,0.00018954,92594.0,92584.0,0.21601782]
[1745362106297,0.00018954,92594.0,92584.0,0.27098587]
[1745362106497,0.00018954,92594.0,92585.0,0.21601576]
[1745362107303,0.00018954,92594.0,92587.0,0.21601303]
[1745362107930,0.00018954,92594.0,92585.0,0.21601576]
[1745362108355,0.00018954,92594.0,92589.0,0.21600658]
[1745362108553,0.00018954,92594.0,92589.0,0.21600683]
[1745362108724,0.00118954,92594.0,92590.0,0.0021598]
[1745362109151,0.00218954,92594.0,92592.0,0.21599943]
[1745362109325,0.00218954,92594.0,92593.0,0.00215969]
[1745362109526,0.00218954,92594.0,92593.0,0.12500359]
[1745362110100,0.00118954,92594.0,92593.0,0.6731559]
[1745362110305,0.00518954,92594.0,92593.0,0.1228439]
[1745362110580,0.00396371,92594.0,92593.0,0.4291149]
[1745362111029,0.001,92594.0,92593.0,0.4291149]
[1745362111220,0.00085,92603.0,92594.0,0.24133739]
[1745362111584,0.00085,92603.0,92595.0,0.592809]
[1745362111798,0.00085,92603.0,92594.0,0.23053756]
[1745362112777,0.00085,92603.0,92595.0,0.138777]
[1745362112973,0.00085,92603.0,92595.0,0.128437]
[1745362113380,0.00185,92603.0,92595.0,0.128437]
[1745362113931,0.00285,92603.0,92594.0,0.23053756]
[1745362114259,0.00085,92603.0,92594.0,0.01454085]
[1745362114482,0.00185,92603.0,92594.0,0.01454085]
[1745362114688,0.00385,92603.0,92594.0,0.01454085]
[1745362115101,0.00485,92603.0,92587.0,0.01454085]
[1745362115398,0.0492,92602.0,92584.0,0.04416705]
[1745362115604,0.0492,92602.0,92584.0,0.00013914]
[1745362116011,0.0492,92602.0,92583.0,0.01080111]
[1745362116203,0.0493393,92602.0,92583.0,0.10830305]
[1745362116581,0.0493393,92602.0,92584.0,0.01454085]
[1745362116786,0.0493393,92602.0,92585.0,0.01080088]
[1745362117161,0.0493393,92602.0,92584.0,0.02534185]
[1745362117601,0.00228117,92601.0,92583.0,0.001]
[1745362117981,0.00228117,92601.0,92580.0,0.0439482]
[1745362118300,0.00228117,92601.0,92579.0,0.01454085]
[1745362118829,0.00228117,92601.0,92577.0,0.01454085]
[1745362119031,0.00228117,92601.0,92579.0,0.01454085]
[1745362119366,0.0492,92600.0,92579.0,0.01454085]
[1745362119713,0.00228117,92599.0,92576.0,0.01080193]
[1745362119926,0.00228117,92599.0,92576.0,0.02534278]
[1745362120135,0.0984,92598.0,92576.0,0.02534278]
[1745362120372,0.00228117,92597.0,92576.0,0.02534278]
[1745362120953,0.00228117,92597.0,92577.0,0.01080181]
[1745362121299,0.00228117,92597.0,92580.0,0.27518096]
[1745362122335,0.00228117,92597.0,92579.0,0.04332808]
[1745362122555,0.00228117,92597.0,92580.0,0.27518096]
[1745362123439,0.00328117,92597.0,92579.0,0.04374865]
[1745362123638,0.00328117,92597.0,92576.0,0.02534278]
[1745362123846,0.00328117,92597.0,92577.0,0.01080181]
[1745362124243,0.00228117,92597.0,92577.0,0.01080181]
[1745362124438,0.08068117,92598.0,92577.0,0.04318788]
[1745362124647,0.08068117,92598.0,92576.0,0.01454085]
[1745362124884,0.08068117,92598.0,92576.0,0.02534278]
[1745362125085,0.08068117,92598.0,92576.0,0.24137971]
[1745362125265,0.08068117,92598.0,92580.0,0.27518096]
[1745362127429,0.08168117,92598.0,92580.0,0.27518096]
[1745362127629,0.08168117,92598.0,92577.0,0.0447738]
[1745362127832,0.08168117,92598.0,92577.0,0.05557561]
[1745362127997,0.08168117,92598.0,92575.0,0.0253429]
[1745362128177,0.08168117,92598.0,92576.0,0.01080193]
[1745362128378,0.08168117,92598.0,92578.0,0.0108017]
[1745362128779,0.08168117,92598.0,92577.0,0.001]
[1745362129185,0.08168117,92598.0,92577.0,0.01080181]
[1745362129408,0.08168117,92598.0,92578.0,0.0108017]
[1745362129409,0.08068117,92598.0,92578.0,0.0108017]
[1745362129607,0.08068117,92598.0,92579.0,0.01080158]
[1745362129784,0.08068117,92598.0,92580.0,0.01080146]
[1745362130321,0.08068117,92598.0,92579.0,0.22683279]
[1745362130483,0.08068117,92598.0,92580.0,0.01080146]
[1745362130683,0.08068117,92598.0,92579.0,0.22683279]
[1745362130900,0.08068117,92598.0,92580.0,0.01080146]
[1745362131091,0.08068117,92598.0,92588.0,0.27518096]
[1745362131288,0.08068117,92598.0,92590.0,0.0108003]
[1745362131550,0.0502,92598.0,92595.0,0.01079971]
[1745362131690,0.001,92598.0,92596.0,0.21815171]
[1745362132602,0.004,92598.0,92596.0,0.21815171]
[1745362132819,0.003,92598.0,92596.0,0.21815171]
[1745362133015,0.0001393,92602.0,92599.0,0.22678378]
[1745362133217,0.0001393,92602.0,92599.0,0.22894339]
[1745362133396,0.0001393,92602.0,92599.0,0.22678378]
[1745362133601,0.0001393,92602.0,92599.0,0.22894339]
[1745362134019,0.0001393,92602.0,92599.0,0.21814414]
[1745362134229,0.0001393,92602.0,92599.0,0.22894339]
[1745362134844,0.0041393,92602.0,92599.0,0.22894339]
[1745362135021,0.0041393,92602.0,92599.0,0.00215961]
[1745362135200,0.0041393,92602.0,92599.0,0.01295886]
[1745362135853,0.0041393,92602.0,92599.0,0.00215961]
[1745362136018,0.0051393,92602.0,92599.0,0.00215961]
[1745362136222,0.0051393,92602.0,92599.0,0.01295886]
[1745362136961,0.0051393,92602.0,92599.0,0.00215961]
[1745362137492,0.0051393,92602.0,92598.0,0.00215962]
[1745362138441,0.0011393,92602.0,92596.0,0.21975075]
[1745362138640,0.0011393,92602.0,92597.0,0.0129591]
[1745362138924,0.0031393,92602.0,92595.0,0.01079971]
[1745362139124,0.0041393,92602.0,92596.0,0.0107996]
[1745362139323,0.0011393,92602.0,92596.0,0.0107996]
[1745362139744,0.0021393,92602.0,92596.0,0.0107996]
[1745362139948,0.0011393,92602.0,92596.0,0.0107996]
[1745362140157,0.0011393,92602.0,92590.0,0.21600406]
[1745362140359,0.0021393,92602.0,92589.0,0.13004]
[1745362140579,0.0495,92600.0,92576.0,0.2695947]
[1745362140735,0.0495,92598.0,92576.0,0.04275416]
[1745362140936,0.0495,92596.0,92573.0,0.01080228]
[1745362141138,0.00215962,92595.0,92576.0,0.01080193]
[1745362141380,0.00215962,92595.0,92577.0,0.01080181]
[1745362141583,0.0495,92596.0,92582.0,0.01080123]
[1745362141807,0.0495,92596.0,92583.0,0.00215996]
[1745362142015,0.0495,92596.0,92582.0,0.01454085]
[1745362142368,0.0495,92596.0,92581.0,0.01454085]
[1745362142576,0.0495,92596.0,92581.0,0.1228439]
[1745362143466,0.0495,92596.0,92586.0,0.27518096]
[1745362143670,0.0495,92596.0,92588.0,0.23054947]
[1745362143823,0.0495,92596.0,92588.0,0.33885252]
[1745362144191,0.0505,92596.0,92588.0,0.33885252]
[1745362145018,0.0515,92596.0,92588.0,0.33885252]
[1745362145219,0.0515,92596.0,92588.0,0.34965305]
[1745362145622,0.0515,92596.0,92588.0,0.33885252]
[1745362146288,0.0525,92596.0,92588.0,0.33885252]
[1745362146645,0.0525,92596.0,92588.0,0.34965305]
[1745362147245,0.0525,92596.0,92588.0,0.1228439]
[1745362148911,0.0525,92596.0,92588.0,0.13364443]
[1745362149277,0.0525,92596.0,92588.0,0.1228439]
[1745362149659,0.0525,92596.0,92588.0,0.13364443]
[1745362150056,0.0525,92596.0,92588.0,0.34965309]
[1745362150395,0.0525,92596.0,92590.0,0.21600421]
[1745362150541,0.0525,92596.0,92591.0,0.00215979]
[1745362151147,0.0505,92596.0,92591.0,0.00215979]
[1745362151551,0.004,92596.0,92593.0,0.01079995]
[1745362151788,0.004,92596.0,92594.0,0.00215973]
[1745362151989,0.001,92596.0,92594.0,0.00215973]
[1745362152191,0.001,92596.0,92591.0,0.21600147]
[1745362152347,0.0476,92601.0,92595.0,0.21599438]
[1745362152552,0.0476,92601.0,92595.0,0.22679409]
[1745362152751,0.001,92596.0,92595.0,0.21599438]
[1745362152985,0.001,92596.0,92590.0,0.2268042]
[1745362153413,0.0476,92601.0,92590.0,0.2268042]
[1745362153618,0.0476,92601.0,92592.0,0.01080006]
[1745362153619,0.003,92596.0,92592.0,0.01080006]
[1745362153981,0.003,92596.0,92593.0,0.23053807]
[1745362154268,0.0486,92601.0,92593.0,0.24133802]
[1745362154492,0.0486,92601.0,92593.0,0.23053807]
[1745362154627,0.003,92596.0,92593.0,0.23053807]
[1745362154827,0.003,92596.0,92594.0,0.00107988]
[1745362155027,0.0486,92601.0,92594.0,0.00107988]
[1745362155249,0.0486,92601.0,92582.0,0.01080123]
[1745362155590,0.0476,92601.0,92586.0,0.01454085]
[1745362155792,0.001,92596.0,92588.0,0.01454085]
[1745362155987,0.001,92596.0,92588.0,0.1228439]
[1745362156193,0.0476,92601.0,92588.0,0.1228439]
[1745362156391,0.004,92596.0,92588.0,0.1228439]
[1745362156915,0.001,92596.0,92588.0,0.1228439]
[1745362157108,0.003,92596.0,92588.0,0.1228439]
[1745362157311,0.003,92596.0,92590.0,0.22680634]
[1745362157522,0.003,92596.0,92595.0,0.01454085]
[1745362157677,0.003,92596.0,92595.0,0.96061127]
[1745362157874,0.003,92596.0,92595.0,0.8560909]
[1745362158277,0.001,92596.0,92595.0,0.6617949]
[1745362158644,0.0476,92601.0,92597.0,0.02534033]
[1745362158781,0.0476,92601.0,92598.0,0.10830305]
[1745362158995,0.0476,92601.0,92594.0,0.01079983]
[1745362159191,0.0476,92601.0,92595.0,0.00107977]
[1745362159404,0.001,92596.0,92595.0,0.00107977]
[1745362159612,0.003,92596.0,92595.0,0.00107977]
[1745362159815,0.003,92596.0,92591.0,0.01454085]
[1745362160018,0.0486,92601.0,92593.0,0.01454085]
[1745362160230,0.0476,92601.0,92593.0,0.01454085]
[1745362160539,0.001,92596.0,92582.0,0.2268247]
[1745362160959,0.001,92596.0,92583.0,0.01080111]
[1745362161476,0.001,92596.0,92582.0,0.2268247]
[1745362161660,0.001,92596.0,92583.0,0.01080111]
[1745362162337,0.0496,92601.0,92583.0,0.01080111]
[1745362162659,0.0506,92601.0,92583.0,0.01080111]
[1745362163055,0.0486,92601.0,92582.0,0.2268247]
[1745362163253,0.0476,92601.0,92582.0,0.2268247]
[1745362163465,0.0476,92601.0,92581.0,0.01454085]
[1745362163466,0.0464,92595.0,92581.0,0.01454085]
[1745362163760,0.0464,92595.0,92578.0,0.1294]
[1745362163761,0.0471,92594.0,92578.0,0.1294]
[1745362163961,0.0464,92593.0,92578.0,0.1294]
[1745362169526,0.15380305,92592.0,92573.0,0.04392107]
[1745362169721,0.15380305,92592.0,92549.0,0.356]
[1745362169722,0.08596466,92586.0,92549.0,0.356]
[1745362169921,0.0932,92583.0,92549.0,0.356]
[1745362170150,0.0932,92577.0,92549.0,0.356]
[1745362170350,0.11100385,92576.0,92549.0,0.356]
[1745362170557,0.0932,92571.0,92549.0,0.356]
[1745362170755,0.0455,92569.0,92558.0,0.506]
[1745362170958,0.0027008,92568.0,92558.0,0.506]
[1745362171975,0.0455,92567.0,92558.0,0.54252084]
[1745362172198,0.0455,92567.0,92558.0,0.506]
[1745362172459,0.0455,92565.0,92558.0,0.4092]
[1745362172675,0.0455,92563.0,92542.0,0.0004249]
[1745362172877,0.11100459,92562.0,92542.0,0.0004249]
[1745362173001,0.0455,92561.0,92542.0,0.0004249]
[1745362173204,0.0455,92559.0,92542.0,0.0004249]
[1745362173404,0.0455,92557.0,92542.0,0.0004249]
[1745362173640,0.0455,92555.0,92542.0,0.00056328]
[1745362173852,0.11100461,92554.0,92542.0,0.00056328]
[1745362174060,0.0477,92552.0,92542.0,0.00056328]
[1745362174378,0.0477,92550.0,92542.0,0.00056328]
[1745362174581,0.0477,92548.0,92542.0,0.00056328]
[1745362174794,0.00270154,92547.0,92542.0,0.00056328]
[1745362175946,0.002,92547.0,92542.0,0.00056328]
[1745362176786,0.005,92547.0,92531.0,0.01454085]
[1745362176986,0.00513919,92547.0,92531.0,0.01454085]
[1745362177562,0.00213919,92547.0,92531.0,0.01454085]
[1745362178198,0.00013919,92547.0,92531.0,0.01454085]
[1745362178551,0.00013919,92547.0,92531.0,0.01554085]
[1745362180024,0.00013919,92547.0,92532.0,0.21614144]
[1745362180204,0.00013919,92547.0,92531.0,0.01554085]
[1745362180647,0.00013919,92547.0,92532.0,0.21614144]
[1745362183330,0.00013919,92547.0,92533.0,0.01454085]
[1745362183603,0.00013919,92547.0,92541.0,0.2161201]
[1745362183904,0.00013919,92547.0,92542.0,0.00108291]
[1745362184288,0.00013919,92547.0,92541.0,0.2161201]
[1745362185706,0.00113919,92547.0,92541.0,0.2161201]
[1745362186464,0.00313919,92547.0,92541.0,0.2161201]
[1745362187323,0.00313919,92547.0,92542.0,0.00108279]
[1745362188208,0.00113919,92547.0,92542.0,0.00108279]
[1745362188409,0.00013919,92547.0,92542.0,0.00108279]
[1745362188613,0.00013919,92547.0,92544.0,0.21611341]
[1745362188777,0.00213919,92547.0,92545.0,0.00108275]
[1745362188976,0.00213919,92547.0,92546.0,0.23064959]
[1745362189180,0.00213919,92547.0,92546.0,0.96093264]
[1745362189382,0.00213919,92547.0,92546.0,1.11558264]
[1745362190140,0.00513919,92547.0,92546.0,1.11558264]
[1745362190318,0.00213919,92547.0,92546.0,1.11558264]
[1745362190528,0.00013919,92547.0,92546.0,1.11558264]
[1745362190735,0.00413919,92547.0,92546.0,1.11558264]
[1745362191048,0.00213919,92547.0,92546.0,1.11558264]
[1745362191251,0.00213919,92547.0,92546.0,1.06391764]
[1745362191460,0.00313919,92547.0,92546.0,1.04090264]
[1745362191672,0.00313919,92547.0,92546.0,1.04190264]
[1745362192293,0.00313919,92547.0,92546.0,0.33995264]
[1745362192445,0.00313919,92547.0,92546.0,2.21415864]
[1745362192645,0.0483,92573.0,92562.0,0.21607104]
[1745362192846,0.0483,92573.0,92559.0,0.21607647]
[1745362193085,0.0483,92573.0,92559.0,0.32437952]
[1745362193911,0.0513,92573.0,92559.0,0.32437952]
[1745362194424,0.0533,92573.0,92559.0,0.32437952]
[1745362195342,0.0533,92573.0,92559.0,0.10830305]
[1745362195871,0.0496,92572.0,92550.0,0.01454085]
[1745362196146,0.0496,92572.0,92560.0,0.27518096]
[1745362196299,0.0496,92572.0,92561.0,0.00108163]
[1745362197324,0.0496,92572.0,92562.0,0.21606917]
[1745362197548,0.0496,92572.0,92563.0,0.00108159]
[1745362197754,0.0506,92572.0,92563.0,0.00108159]
[1745362197909,0.0516,92572.0,92563.0,0.00108159]
[1745362198464,0.0506,92572.0,92563.0,0.00108159]
[1745362198775,0.0506,92572.0,92570.0,0.21605066]
[1745362198776,0.001,92572.0,92570.0,0.21605066]
[1745362198913,0.0456,92580.0,92577.0,0.21603638]
[1745362199127,0.002,92572.0,92571.0,0.01080251]
[1745362199347,0.002,92572.0,92571.0,0.21713146]
[1745362200282,0.0456,92580.0,92571.0,0.03668531]
[1745362200475,0.003,92572.0,92571.0,0.03668531]
[1745362200628,0.003,92572.0,92559.0,0.22688022]
[1745362200829,0.003,92572.0,92561.0,0.21607344]
[1745362201108,0.003,92572.0,92562.0,0.00108167]
[1745362201303,0.00270051,92579.0,92557.0,0.21608301]
[1745362201620,0.00270051,92579.0,92557.0,0.32438606]
[1745362201970,0.00270051,92579.0,92558.0,0.21607867]
[1745362202218,0.004,92572.0,92562.0,0.21607057]
[1745362202360,0.004,92572.0,92564.0,0.21606672]
[1745362202564,0.004,92572.0,92565.0,0.00108167]
[1745362202785,0.0486,92580.0,92565.0,0.00108167]
[1745362203014,0.0486,92580.0,92561.0,0.00108167]
[1745362203214,0.0456,92580.0,92561.0,0.21715322]
[1745362203502,0.0456,92580.0,92566.0,0.0108031]
[1745362203710,0.002,92572.0,92567.0,0.21713983]
[1745362204113,0.002,92572.0,92568.0,0.2160551]
[1745362204355,0.002,92572.0,92569.0,0.00108128]
[1745362205192,0.004,92572.0,92565.0,0.21606426]
[1745362205512,0.002,92572.0,92565.0,0.21606426]
[1745362206455,0.0456,92580.0,92565.0,0.21606426]
[1745362206600,0.002,92572.0,92565.0,0.21606426]
[1745362206801,0.004,92572.0,92565.0,0.21606426]
[1745362207019,0.002,92572.0,92565.0,0.21606426]
[1745362207201,0.003,92572.0,92565.0,0.21606426]
[1745362213186,0.003,92572.0,92562.0,0.10830305]
[1745362214108,0.002,92572.0,92562.0,0.10830305]
[1745362214551,0.0456,92580.0,92562.0,0.32437417]
[1745362214753,0.0456,92580.0,92570.0,0.27518096]
[1745362215025,0.002,92572.0,92571.0,0.00108138]
[1745362215356,0.001,92572.0,92571.0,0.00108138]
[1745362216343,0.0456,92580.0,92571.0,0.00108138]
[1745362216486,0.004,92572.0,92571.0,0.00108138]
[1745362217028,0.007,92572.0,92571.0,0.00108138]
[1745362222255,0.007,92572.0,92566.0,0.00108134]
[1745362222482,0.007,92572.0,92568.0,0.21605614]
[1745362222714,0.007,92572.0,92569.0,0.00108135]
[1745362223431,0.004,92572.0,92569.0,0.00108135]
[1745362223603,0.002,92572.0,92566.0,0.00108134]
[1745362224361,0.004,92572.0,92566.0,0.00108134]
[1745362224783,0.006,92572.0,92566.0,0.00108134]
[1745362225791,0.006,92572.0,92560.0,0.27518096]
[1745362226681,0.002,92572.0,92560.0,0.28598476]
[1745362226882,0.003,92572.0,92560.0,0.28598476]
[1745362227083,0.003,92572.0,92561.0,0.01080368]
[1745362227306,0.003,92572.0,92560.0,0.28598476]
[1745362227518,0.003,92572.0,92560.0,0.27518096]
[1745362227724,0.001,92572.0,92560.0,0.28598476]
[1745362227928,0.001,92572.0,92561.0,0.01080368]
[1745362228154,0.002,92572.0,92561.0,0.01080368]
[1745362228280,0.002,92572.0,92560.0,0.28598476]
[1745362230111,0.002,92572.0,92561.0,0.01080368]
[1745362230533,0.002,92572.0,92561.0,0.2268766]
[1745362230725,0.002,92572.0,92561.0,0.01080368]
[1745362231453,0.002,92572.0,92562.0,0.11910661]
[1745362231652,0.002,92572.0,92562.0,0.10830305]
[1745362232371,0.002,92572.0,92564.0,0.01080333]
[1745362232535,0.002,92572.0,92562.0,0.11910661]
[1745362233204,0.001,92572.0,92562.0,0.11910661]
[1745362233431,0.002,92572.0,92562.0,0.11910661]
[1745362233641,0.001,92572.0,92562.0,0.11910661]
[1745362234161,0.002,92572.0,92563.0,0.0010814]
[1745362234974,0.001,92572.0,92563.0,0.21714958]
[1745362235349,0.003,92572.0,92564.0,0.21606495]
[1745362235609,0.003,92572.0,92565.0,0.0010814]
[1745362235816,0.003,92572.0,92571.0,0.21605038]
[1745362235994,0.002,92572.0,92571.0,0.33997514]
[1745362236267,0.003,92572.0,92571.0,1.13522728]
[1745362236440,0.003,92572.0,92571.0,0.98290728]
[1745362236597,0.0486,92582.0,92575.0,0.21604073]
[1745362236934,0.0486,92582.0,92577.0,0.01454085]
[1745362237134,0.0486,92582.0,92579.0,0.01454085]
[1745362237341,0.0486,92582.0,92579.0,0.1228439]
[1745362237684,0.0506,92582.0,92576.0,0.01454085]
[1745362237942,0.0516,92582.0,92573.0,0.22684611]
[1745362238141,0.0496,92582.0,92573.0,0.22684611]
[1745362238366,0.0496,92582.0,92573.0,0.21604383]
[1745362238519,0.0526,92582.0,92573.0,0.21604383]
[1745362238929,0.0526,92582.0,92571.0,0.01454085]
[1745362239124,0.0516,92582.0,92571.0,0.1228439]
[1745362239686,0.0536,92582.0,92571.0,0.1228439]
[1745362239865,0.0486,92582.0,92572.0,0.22685044]
[1745362240105,0.0516,92582.0,92574.0,0.01080216]
[1745362240278,0.0516,92582.0,92572.0,0.22685044]
[1745362240483,0.0516,92582.0,92575.0,0.0253429]
[1745362240685,0.001,92582.0,92581.0,0.23056789]
[1745362240888,0.00098918,92585.0,92583.0,0.21602237]
[1745362241101,0.00098918,92585.0,92584.0,0.00108043]
[1745362242954,0.00098918,92585.0,92583.0,0.10830305]
[1745362243357,0.00298918,92585.0,92584.0,0.00108035]
[1745362243861,0.00598918,92585.0,92584.0,0.00108035]
[1745362249675,0.00598918,92585.0,92584.0,0.12392425]
[1745362249839,0.00598918,92585.0,92584.0,0.91572024]
[1745362250042,0.00598918,92585.0,92584.0,0.9146399]
[1745362250673,0.00098918,92585.0,92584.0,0.9146399]
[1745362251038,0.00098918,92585.0,92584.0,0.9156399]
[1745362251447,0.00098918,92585.0,92584.0,0.1238439]
[1745362251647,0.00098918,92585.0,92584.0,1.16784375]
[1745362251841,0.00098918,92585.0,92584.0,1.1803839]
[1745362253324,0.00098918,92585.0,92584.0,1.1242929]
[1745362254801,0.00098918,92585.0,92584.0,0.9356989]
[1745362255001,0.00098918,92585.0,92584.0,0.9089049]
[1745362255904,0.00098918,92585.0,92584.0,0.7981569]
[1745362256475,0.00098918,92585.0,92584.0,0.3105899]
[1745362256802,0.00098918,92585.0,92584.0,0.1238439]
[1745362257679,0.00098918,92585.0,92584.0,2.0207379]
[1745362257983,0.00098918,92585.0,92584.0,1.9178009]
[1745362258143,0.00098918,92585.0,92584.0,1.8065319]
[1745362258627,0.00098918,92585.0,92584.0,0.5706619]
[1745362259399,0.00098918,92585.0,92584.0,0.3466249]
[1745362259596,0.00098918,92585.0,92584.0,0.3066249]
[1745362260269,0.00098918,92585.0,92584.0,0.1238439]
[1745362260449,0.00098918,92585.0,92579.0,0.22683151]
[1745362260450,0.09288918,92585.0,92571.0,0.13840251]
[1745362260645,0.09288918,92585.0,92575.0,0.01080205]
[1745362260826,0.09288918,92585.0,92580.0,0.01454085]
[1745362261023,0.09288918,92585.0,92581.0,0.10830305]
[1745362262199,0.09288918,92585.0,92576.0,0.01454085]
[1745362262399,0.09288918,92585.0,92578.0,0.01454085]
[1745362262717,0.09288918,92585.0,92578.0,0.1228439]
[1745362263446,0.09488918,92585.0,92578.0,0.1228439]
[1745362264300,0.09688918,92585.0,92578.0,0.1228439]
[1745362268992,0.09688918,92585.0,92575.0,0.27518096]
[1745362269461,0.09688918,92585.0,92575.0,0.28598301]
[1745362269830,0.09488918,92585.0,92575.0,0.28598301]
[1745362270260,0.09688918,92585.0,92575.0,0.28598301]
[1745362270664,0.09488918,92585.0,92575.0,0.28598301]
[1745362270891,0.09588918,92585.0,92575.0,0.27518096]
[1745362271265,0.09588918,92585.0,92575.0,0.28598301]
[1745362271466,0.09588918,92585.0,92576.0,0.01080193]
[1745362271666,0.09588918,92585.0,92580.0,0.01080146]
[1745362272086,0.09588918,92585.0,92579.0,0.01051179]
[1745362272247,0.09388918,92585.0,92578.0,0.01188262]
[1745362272661,0.09488918,92585.0,92578.0,0.01188262]
[1745362272873,0.09488918,92585.0,92583.0,0.21602168]
[1745362273080,0.00298918,92585.0,92584.0,0.86088777]
[1745362273316,0.00098918,92585.0,92584.0,0.8598069]
[1745362273526,0.002,92585.0,92584.0,1.07682461]
[1745362273754,0.00085,92603.0,92602.0,0.2305189]
[1745362273994,0.00085,92603.0,92602.0,0.33882195]
[1745362274190,0.00085,92603.0,92602.0,2.84343095]
[1745362274409,0.00085,92603.0,92602.0,2.24292295]
[1745362274627,0.00085,92603.0,92602.0,1.89023195]
[1745362275647,0.00285,92603.0,92602.0,1.89023195]
[1745362275916,0.00186387,92603.0,92602.0,1.89023195]
[1745362276275,0.002,92603.0,92602.0,1.89023195]
[1745362276455,0.0008498,92617.0,92604.0,0.23051424]
[1745362276651,0.0008498,92617.0,92604.0,2.40117229]
[1745362276879,0.0008498,92617.0,92604.0,1.19305029]
[1745362278044,0.0008498,92617.0,92604.0,1.16651429]
[1745362278251,0.0008498,92617.0,92604.0,0.32427644]
[1745362278421,0.0489,92609.0,92604.0,0.10830305]
[1745362278877,0.0489,92609.0,92604.0,0.1228439]
[1745362279084,0.0489,92609.0,92604.0,0.1238439]
[1745362279616,0.0489,92609.0,92604.0,0.34089668]
[1745362279840,0.0489,92609.0,92604.0,0.33981729]
[1745362281476,0.0489,92609.0,92604.0,0.33881729]
[1745362282067,0.0018504,92605.0,92604.0,0.33881729]
[1745362282240,0.0008504,92605.0,92604.0,0.33881729]